Cogmind - Beta 15 @@@ ROGUE MODE // 2025.08.24 @ 14:44:44 Player: TapeIsSticky Result: Destroyed by Vortex Trap Performance ------------- Evolutions (0) 0 Regions Visited (3) 600 Robots Destroyed (28) 140 Value Destroyed (564) 564 Prototype IDs (6) 120 Alien Tech Used (0) 0 Bonus (300) 300 TOTAL SCORE: 1724 Bonus ------- Registered with UFD 300 Cogmind --------- Core Integrity 0/250 Matter 255/300 Energy 249/250 System Corruption 1% Temperature Cool (0) Movement Core (250) Ox4 Location -8/Scraptown Parts ------- > --- POWER (1) -------- Ion Engine > --- PROPULSION (2) --- Light Treads Light Treads > --- UTILITY (2) ------ Propulsion Shielding Improved Medium Armor Plating > --- WEAPON (2) ------- (None) > --- INVENTORY (5) ---- Light Treads Light Treads Targeting Computer Mining Laser Peak State ------------ > --- POWER ------------ Ion Engine > --- PROPULSION ------- Light Treads Light Treads > --- UTILITY ---------- Large Storage Unit High-capacity Storage Unit > --- WEAPON ----------- Battle Rifle Battle Cannon > --- INVENTORY -------- Ion Engine Ion Engine Light Ion Engine Subdweller Power Source Light Treads Light Treads Wheel Compact Wheel Huge Storage Unit Seismic Detector Targeting Computer Light Assault Rifle Light Assault Rifle Mining Laser [Rating: 10] Favorites ----------- Power Ion Engine Engine Ion Engine Propulsion Light Treads Treads Light Treads Utility Seismic Detector Device Seismic Detector Storage Large Storage Unit Protection Improved Medium Armor Plating Weapon Light Assault Rifle Ballistic Gun Light Assault Rifle Ballistic Cannon Battle Cannon Build | -11 -10 -10 -8 ------- Run | Yrd Mat Sub Scr Slots Evolved . | . . . . Power . | . . . . Propulsion . | . . . . Utility . | . . . . Weapon . | . . . . Parts Attached 19 | 8 6 3 2 Power 3 | 1 2 . . Engine 3 | 1 2 . . Core . | . . . . Reactor . | . . . . Propulsion 3 | 2 . 1 . Treads 3 | 2 . 1 . Leg . | . . . . Wheel . | . . . . Hover . | . . . . Flight . | . . . . Utility 7 | 2 3 . 2 Device 1 | 1 . . . Storage 4 | 1 3 . . Processor . | . . . . Hackware . | . . . . Protection 2 | . . . 2 Artifact . | . . . . Weapon 6 | 3 1 2 . Energy Gun . | . . . . Energy Cannon . | . . . . Ballistic Gun 5 | 3 1 1 . Ballistic Cannon 1 | . . 1 . Launcher . | . . . . Special Weapon . | . . . . Impact Weapon . | . . . . Slashing Weapon . | . . . . Piercing Weapon . | . . . . Special Melee Weapon . | . . . . Unidentified Prototypes . | . . . . Parts Lost 4 | . 1 3 . Power . | . . . . Propulsion 1 | . . 1 . Utility 1 | . . 1 . Weapon 2 | . 1 1 . Highest Loss Streak 2 | . 1 2 . To Critical Strikes . | . . . . Average Backups 10 | 2 8 15 10 Power 2 | . 1 3 2 Propulsion 2 | . 2 4 3 Utility 2 | . 2 3 2 Weapon 1 | . 1 2 2 Tool/Special . | . . . . Unused Backups 11 | 1 . . 10 Power 3 | . . . 3 Propulsion 4 | . . . 4 Utility 3 | 1 . . 2 Weapon 1 | . . . 1 Tool/Special . | . . . . Average Slot Usage (%) 84 | . 100 89 73 Engine 11 | . 14 14 10 Treads 28 | . 28 28 28 Device 5 | . 14 4 . Storage 10 | . 14 14 7 Protection 6 | . . . 12 Ballistic Gun 15 | . 28 16 7 Ballistic Cannon 5 | . . 11 7 Peak Build Rating 10 | 7 8 10 10 Average Rating 7 | 5 7 8 8 On Entrance 6 | . 7 8 9 Naked Turns . | . . . . Heaviest Build 50 | 14 29 50 50 Greatest Support 40 | 40 40 40 40 Greatest Overweight (x) 4 | . . 1 4 Average Overweight (x) . | . . . 1 Largest Inventory Capacity 25 | 8 25 20 20 Average Capacity 13 | 7 14 17 12 Most Carried 17 | 4 15 16 17 Average Carried 10 | 2 8 15 10 Final Capacity 20 | 8 15 20 5 Final Carried 16 | 4 14 16 4 Class Distribution -------------------- 100% | Mutant Dominant Class ---------------- Mutant | -10/Materials Mutant | -10/Subcaves Mutant | -8/Scraptown Resources | -11 -10 -10 -8 ----------- Run | Yrd Mat Sub Scr Matter Collected 736 | 320 234 182 . Remotely . | . . . . Salvage Created 904 | 186 604 114 . Parts 62 | 11 43 8 . Haulers Intercepted 2 | . 2 . . Recyclers Shooed 3 | 1 2 . . Parts Field Recycled . | . . . . Retrieved Matter . | . . . . Parts Self-Destructed 13 | . . 13 . Prevented . | . . . . Kills | -11 -10 -10 -8 ------- Run | Yrd Mat Sub Scr Combat Hostiles Destroyed 17 | . 12 5 . Guns 13 | . 12 1 . Cannons 4 | . . 4 . Classes Destroyed 7 | 2 4 1 . Tunneler 4 | 4 . . . Hauler 2 | . 2 . . Recycler 2 | 1 1 . . Watcher 3 | . 3 . . Swarmer 6 | . 3 3 . Grunt 9 | . 9 . . Subdweller 2 | . . 2 . Best Kill Streak 4 | 4 3 3 . Combat Bots Only 3 | . 3 3 . Max Kills in Single Turn 1 | 1 1 1 . Gunslinging . | . . . . Exploded . | . . . . Melee . | . . . . Uniques/NPCs Destroyed . | . . . . Combat | -11 -10 -10 -8 -------- Run | Yrd Mat Sub Scr Hostile Shots Fired 96 | . 61 35 . Missed 21 | . 10 11 . Hits 75 | . 51 24 . Projectile 75 | . 51 24 . Critical Strikes 1 | . 1 . . Damage Taken 1060 | . 639 319 102 Core 292 | . 122 74 96 Absorbed by Shields . | . . . . Core Remaining (%) 100 | 100 . . . Volleys Fired 84 | 10 53 21 . Largest 2 | 2 2 2 . Hottest 53 | 40 40 53 . Shots Fired 159 | 20 106 33 . Gun 138 | 20 106 12 . Cannon 21 | . . 21 . Launcher . | . . . . Special . | . . . . Kinetic 159 | 20 106 33 . Thermal . | . . . . Explosive . | . . . . Electromagnetic . | . . . . Robot Hit Streak 8 | 7 8 6 . Robot Miss Streak 2 | 1 2 2 . Penetration Max . | . . . . Secondary Targets . | . . . . Shots Hit Robots 99 | 13 72 14 . Core Hits 45 | 7 30 8 . Critical Kills . | . . . . Critical Parts Destroyed . | . . . . Critical Strikes 1 | . . 1 . Blast 1 | . . 1 . Melee Attacks . | . . . . Impact . | . . . . Slashing . | . . . . Piercing . | . . . . Sneak Attacks . | . . . . Combat Hostiles . | . . . . Follow-up Attacks . | . . . . Damage Inflicted 1247 | 158 847 224 18 Guns 1008 | 154 796 58 . Cannons 166 | . . 166 . Explosions . | . . . . Melee . | . . . . Ramming 73 | 4 51 . 18 Kinetic 1174 | 154 796 224 . Thermal . | . . . . Explosive . | . . . . Electromagnetic . | . . . . Impact . | . . . . Slashing . | . . . . Piercing . | . . . . Highest Corruption 1 | . . . 1 Average Corruption 1 | . . . 1 Corruption Purged . | . . . . Corruption Blocked . | . . . . Effects 11 | . . . 11 Message Errors 4 | . . . 4 Matter Fused 2 | . . . 2 Energy Discharges 3 | . . . 3 Data Loss (minor) 1 | . . . 1 Alerts 1 | . . . 1 Overload Shots . | . . . . Overflow Damage . | . . . . Projectiles . | . . . . Explosions . | . . . . Melee . | . . . . Knockbacks 2 | . . 2 . Impact . | . . . . Kinetic 2 | . . 2 . Secondary . | . . . . Self-Inflicted Damage 18 | . . . 18 Shots . | . . . . Rammed 7 | 1 6 . . Targets Rammed 8 | 1 7 . . Kicked . | . . . . Crushed 1 | . 1 . . Highest Temperature 48 | . 48 . . Average Temperature 14 | . 14 . . Received Heat Transfer 336 | . 324 12 . Siege Activations . | . . . . Martial Activations . | . . . . Shielding Activations . | . . . . Robots Disrupted . | . . . . Combat Hostiles . | . . . . Robots Corrupted . | . . . . Combat Hostiles . | . . . . Parts Fried . | . . . . Impact Corruptions . | . . . . Robots Melted . | . . . . Combat Hostiles . | . . . . Parts Melted . | . . . . Heat Transferred . | . . . . Parts Sabotaged . | . . . . Parts Stolen . | . . . . Parts Stripped . | . . . . Power Chain Reactions . | . . . . Alert | -11 -10 -10 -8 ------- Run | Yrd Mat Sub Scr Maximum Alert Level . | . . . . Low Security (%) 100 | 100 100 . . Level 1 . | . . . . Level 2 . | . . . . Level 3 . | . . . . Level 4 . | . . . . Level 5 . | . . . . High Security . | . . . . Max Security . | . . . . Peak Influence 85 | 15 85 . . Initial . | . . . . Average 16 | 1 20 . . Influence Increases 478 | 25 363 90 . Destroy 0b10 Robot/C 300 | . 240 60 . Destroy 0b10 Robot/NC 55 | 25 30 . . Destroy Leader 60 | . 60 . . Successful Hack 33 | . 33 . . Lose Combat Pursuer 30 | . . 30 . Influence Decreases 478 | 25 363 90 . Time Decay 458 | 25 363 70 . Lost Part 20 | . . 20 . Squads Dispatched 2 | . 2 . . Investigation 1 | . 1 . . Extermination . | . . . . Reinforcement 1 | . 1 . . Assault . | . . . . Garrison . | . . . . Intercept . | . . . . Searches Triggered . | . . . . Construction Impeded . | . . . . Haulers Reinforced . | . . . . Active Scanning Responses . | . . . . Cargo Convoy Interrupts . | . . . . Stealth | -11 -10 -10 -8 --------- Run | Yrd Mat Sub Scr Distress Signals 1 | . 1 . . Communications Jammed . | . . . . Distress Signals . | . . . . Times Spotted 25 | . 18 7 . Peak Tracking Total 5 | . 5 5 . Tactical Retreats 1 | . . 1 . Traps | -11 -10 -10 -8 ------- Run | Yrd Mat Sub Scr Traps Triggered 3 | . 2 . 1 Indirectly . | . . . . Trap Hack Attempts . | . . . . Triggered . | . . . . Disarmed . | . . . . Reprogrammed . | . . . . Reused . | . . . . Traps Extracted . | . . . . Installed 1 | . . . 1 Triggered . | . . . . Most Traps Carried 1 | . . . 1 Machines | -11 -10 -10 -8 ---------- Run | Yrd Mat Sub Scr Machines Disabled . | . . . . Max in Single Turn . | . . . . Machines Repaired . | . . . . Machines Dismantled . | . . . . Machines Sabotaged . | . . . . Overloaded Fab Kills . | . . . . Hacking | -11 -10 -10 -8 --------- Run | Yrd Mat Sub Scr Machines Accessed 13 | . 7 1 5 Terminals 5 | . 5 . . Fabricators . | . . . . Repair Stations . | . . . . Recycling Units 2 | . 2 . . Scanalyzers . | . . . . Garrison Access . | . . . . Total Hacks 35 | . 18 1 16 Successful 26 | . 9 1 16 Failed 9 | . 9 . . Catastrophic 2 | . 2 . . Database Lockouts . | . . . . Manual 13 | . 13 . . Terminals 13 | . 13 . . Fabricators . | . . . . Repair Stations . | . . . . Recycling Units 5 | . 5 . . Scanalyzers . | . . . . Garrison Access . | . . . . Terminal Hacks 17 | . . 1 16 Record 15 | . . . 15 Open Door 1 | . . 1 . Proto ID Catalog 1 | . . . 1 Fabricator Hacks . | . . . . Repair Station Hacks . | . . . . Recycling Unit Hacks 2 | . 2 . . Retrieve Components 2 | . 2 . . Scanalyzer . | . . . . Garrison Access Hacks . | . . . . Unauthorized Hacks 7 | . 7 . . Terminals 7 | . 7 . . Botnet 2 | . 2 . . Skim 5 | . 5 . . Fabricators . | . . . . Repair Stations . | . . . . Recycling Units . | . . . . Scanalyzers . | . . . . Garrison Access . | . . . . Data Cores Recovered . | . . . . Used . | . . . . Hacking Detections 5 | . 5 . . Full Trace Events 1 | . 1 . . Feedback Events . | . . . . Feedback Blocked . | . . . . Robot Schematics Acquired . | . . . . Robots Built . | . . . . Authchips . | . . . . Time . | . . . . Total Robot Build Rating . | . . . . Part Schematics Acquired . | . . . . Parts Built . | . . . . Authchips . | . . . . Time . | . . . . Total Part Build Rating . | . . . . Parts Repaired . | . . . . Time . | . . . . Parts Recycled . | . . . . Recycled Matter . | . . . . Retrieved Matter . | . . . . Retrieved Components 17 | . 17 . . Parts Scanalyzed . | . . . . Part Schematics Acquired . | . . . . Parts Damaged . | . . . . Bothacking | -11 -10 -10 -8 ------------ Run | Yrd Mat Sub Scr Used RIF Installer . | . . . . Robots Hacked . | . . . . Non-combat . | . . . . Combat . | . . . . Robot Hacks Applied . | . . . . Relay Couplers Released . | . . . . Fabnet Peak Effective % . | . . . . Robots Rewired . | . . . . Allies Hacked . | . . . . Hacks Repelled . | . . . . Allies | -11 -10 -10 -8 -------- Run | Yrd Mat Sub Scr Total Allies . | . . . . Largest Group . | . . . . Highest-Rated Group . | . . . . Highest-Rated Ally . | . . . . Total Orders . | . . . . Ally Attacks . | . . . . Total Damage . | . . . . Kills . | . . . . Allies Corrupted . | . . . . Allies Melted . | . . . . Intel | -11 -10 -10 -8 ------- Run | Yrd Mat Sub Scr Active Infowar (turns) 2030 | 112 1693 225 . Seismic 2030 | 112 1693 225 . Robot Analysis Total . | . . . . Derelict Logs Recovered 1 | . . 1 . Drone Launches . | . . . . Drone Recoveries . | . . . . Exploration | -11 -10 -10 -8 ------------- Run | Yrd Mat Sub Scr Turns Passed 5586 | 341 1693 761 2791 Spaces Moved 2579 | 124 624 351 1480 Core 892 | 8 . . 884 Treads 1687 | 116 624 351 596 Legs . | . . . . Wheels . | . . . . Hover . | . . . . Flight . | . . . . Fastest Speed 50 | 50 160 160 50 Average Speed 180 | 152 160 194 187 Slowest Speed 250 | 160 160 240 250 Overloaded Moves . | . . . . Propulsion Burnouts . | . . . . Robots Hopped . | . . . . Potential Cave-ins . | . . . . Cave-ins Triggered . | . . . . Exploration Rate (%) 51 | 7 94 26 80 Regions Visited 3 Branch Regions 2 Pre-discovered Areas 1 | . . 1 . Known Exits Taken . | . . . . Unknown Exits Taken 3 | 1 1 1 . Scrap Searched 5 | . . 1 4 Spaces Dug . | . . . . Terrain Destroyed . | . . . . Melee . | . . . . Projectile . | . . . . AOE . | . . . . Terrain Rammed 3 | . . . 3 Walls Destroyed . | . . . . Machines Disabled . | . . . . Actions | -11 -10 -10 -8 --------- Run | Yrd Mat Sub Scr Total 3364 | 253 1217 398 1496 Wait 641 | 106 517 18 . Move 2576 | 123 623 350 1480 Hop . | . . . . Pick Up 19 | 4 9 3 3 Fast Attach 9 | 7 . . 2 Attach 5 | . 1 3 1 Detach 1 | . . 1 . Swap 9 | 1 6 2 . Drop 8 | 1 1 . 6 Fire 84 | 10 53 21 . Melee . | . . . . Ram 3 | . . . 3 Kick . | . . . . Crush 8 | 1 7 . . Escape Stasis . | . . . . Rewire . | . . . . Trap 1 | . . . 1 Miscellaneous . | . . . . Route ------- -11/Scrapyard -10/Materials (discovered 6 exits: [*Mat x3] / [*Min x2] / *Sub) -10/Subcaves -8/Scraptown History --------- Turn | Location | Event 13 | -11/Scrapyard | Discovered new exit (range 15) 342 | -11/Scrapyard | Entered Materials 343 | -10/Materials | Build established: Mutant 838 | -10/Materials | Discovered new exit (range 6) 958 | -10/Materials | Discovered new exit (range 15) 1462 | -10/Materials | Discovered new exit (range 15) 1603 | -10/Materials | Discovered new exit (range 9) 1830 | -10/Materials | Discovered new exit (range 15) 1874 | -10/Materials | Discovered new exit (range 16) 2035 | -10/Materials | Entered Subcaves 2036 | -10/Subcaves | Shifting Twisted Machinery released Battle Cannon 2036 | -10/Subcaves | Approached by a straggling Scientist 2038 | -10/Subcaves | Shifting Twisted Machinery released Sub. Monowheel 2100 | -10/Subcaves | Learned location of Zion (-7) 2264 | -10/Subcaves | Core integrity fell below 50% 2779 | -10/Subcaves | Scientist uncovered a shortcut to Scraptown 2796 | -10/Subcaves | Entered Scraptown 3036 | -8/Scraptown | Visited UFD Registry 3036 | -8/Scraptown | Registered with UFD as "Protospreader" 3089 | -8/Scraptown | Visited Science Guys 3171 | -8/Scraptown | Visited Abandonware Association 3200 | -8/Scraptown | Learned abandonware demo "TRNCOAT.EXE" 3200 | -8/Scraptown | Learned abandonware demo "POISON.EXE" 3255 | -8/Scraptown | Visited Scrap Suit Storage 3284 | -8/Scraptown | Visited Junk Repository 3339 | -8/Scraptown | Visited Scrapoid Pod Storage 3370 | -8/Scraptown | Visited DA-N13 Charitable Foundation 3394 | -8/Scraptown | Found DCF Scrap (32 items) 3430 | -8/Scraptown | Visited Modified Component R&D 3574 | -8/Scraptown | Visited Scrapoid Research Area 3646 | -8/Scraptown | Visited Botcube Research 3658 | -8/Scraptown | Found Botcube 3707 | -8/Scraptown | Visited Science Testing Area 3856 | -8/Scraptown | Visited TADAMA 3882 | -8/Scraptown | Visited Comm Corps 4029 | -8/Scraptown | Visited Cyclists 4069 | -8/Scraptown | Entered Cyclist Reading Room 4238 | -8/Scraptown | Core integrity fell below 20% 4254 | -8/Scraptown | Visited SPCMW 4633 | -8/Scraptown | Heard Great Nut preacher, LISTEN AND RECITE! 5325 | -8/Scraptown | Warned about trapping Scraptown 5587 | -8/Scraptown | Destroyed by Vortex Trap Last Messages --------------- 05090_ DJ-DW4(p) closely examines the mainframe. 05106_ ZES3FXTCLOQRX#5EQCMGSERIC/SCN4 05186_ Acquired Vortex Trap. 05254_ DJ-DW4(p) scrutinizes some mainframe outputs. 05255_ System corrupted: Matter fused (-7). 05284_ System corrupted: Energy discharge (-62). 05314_ Dropped Vortex Trap. 05320_ Acquired Vortex Trap. 05323_ Dropped Vortex Trap. 05324_ Installed Vortex Trap. 05325_ ANNOUNCEMENT: Tracking potentially hostile trap installation. 05360_ System corrupted: Energy discharge (-62). 05480_ 4 MMK1,UIB5UUEPJ|RJHOW4D<5XYNGR 05576_ System corrupted: Energy discharge (-77). 05587_ System corruption misinterpreted. 05587_ Triggered Vortex Trap. 05587_ A wave of accelerated entropy washes over the area. Map ----- +----------------------------------------------------+ | ?????????????????????????????????????????????????? | | ?????????????????????????????????????????????????? | | ?????????????????????????????????????????????????? | | ?????????????????????????????????????????????????? | | ?????????????????????????????????????????????????? | | ?????????????????????????????????????????????????? | | ?????????????????????????????????????????????????? | | ?????????????????????????????????????????????????? | | ?????????????????????????????????????????????????? | | ?????????????????????????????????????????????????? | | ?????????????????????????????????????????????????? | | ?????????????????????????????????????????????????? | | ?????????????????????????????????????????????????? | | ????????????????????????????????????????????###### | | ??????????????????????????????###########? #""""" | | ??????????????????????????????#""""" #? #""""" | | ??????????????????????????????# " " " #? #" " | | ??????###########?????????????# """## #"= | | ??????# #?????????????# """## #" | | ??????# #?????????????# " """## #" | | ??????# #?#######"###?#""" " ## #""""" | | ??????# #?#""""j ""##""" ## #####" | | ??????# #?#""" ""##""" ""## #""""" | | ??????# #?#"" " ## " "## # [ | | ??????# #?#""" "## "## # | | ??????# #?# @ "## ## # | | ??????###### ####?###### ########### ##### ## ### | | ???????##### ########### ########### ##### ## ### | | ???????#"""" """"""""""" """"""""""" """"" "" "## | | ???????#" "## | | ???????#" "## | | ???????#" "## | | ???????#" "## | | ????####" = | | ????"""" """""""""""""""""""""""""""" "## | | ????"""" """""""""""""""""""""""""""" "## | | ????"""" ""###### ################"" "## | | ????"""" ""#???? ?????????????#"" "#? | | ????"""" ""#??? ?????????????#"" "#? | | ##?#"""" ""#? "" "" ????????????#"" "#? | | "#"#"""" ""# "" ????????????###"" "#? | | """#"""" ""# " ??????####### #"" "## | | "#######" "" "??????? | | ##?????#" "" "??????? "## | | ########" ""# " ???????####### #"" "#? | | ""# "" ????????????###"" "#? | | ""#? "" ""?????????????#"" "## | | ""#??? ?????????????#"" "## | | ""#???? ??????????????#"" "## | | ""###### ################"" "## | +----------------------------------------------------+ Best States ------------- Heat Dissipation 25 Energy Generation 10 Energy Capacity 250 Matter Stores 300 Matter Capacity 300 Sight Range 16 Terrain Scan Density 10 Armor Coverage 225 Propulsion Shielding 33 Evasion (%) 50 Recoil Reduction 2 Item Schematics ----------------- None Robot Schematics ------------------ None Fabricated ------------ Nothing Repaired ---------- Nothing Alien Tech Used ----------------- None Achievements -------------- None Challenges ------------ None Game ------ Seed ThrowingAblativeFlakker Manual? 0 Play Time 00:20:10 Cumulative 179.4 hours Start 2025.08.24 @ 12:38:24 End 2025.08.24 @ 14:44:44 Sessions 6 Manual Loads 0 Difficulty Rogue Special Mode None Game No. 97 Rogue 97 Adventurer 0 Explorer 0 Win Type - Total 19 Types 9/1/5/1/0/1/1/1/0/0 Lore% 69 Gallery% 63 Achievement% 70 Wizard Run 0 Options --------- Layout 1 ASCII 0 Keyboard 0 Movement Arrows Keybinds 0 Fullscreen 2 Font 24/Tamsyn Map View 50x35 Zoom Use 0% Tactical HUD 1 Map Filters NONE Filters NONE Steam 1 RUN: af5d2aa4-d37a-40a6-ab63-0f9f2f8d4692